Workbook

Sheet Sommaire
A1: Contrat | B1: Compagnie
A2: Contrat | B2: =IF(A1="contrat","Prévision des contrats",IF(A1="Facture","Facturation mensuelle",IF(A1="Commission","Commissions vendeurs",IF(A1="commission à payer","Commissions à payer","")))) -> Prévision des contrats
A3: Facture
A4: Commission | C4: Septembre | D4: Octobre | E4: Novembre | F4: Décembre | G4: Janvier | H4: Février | I4: Mars | J4: Avril | K4: Mai | L4: Juin | M4: Juillet | N4: Août | O4: Total
A5: Commission à payer | C5: 2018 | D5: =IF(D4="janvier",C5+1,C5) -> 2018 | E5: =IF(E4="janvier",D5+1,D5) -> 2018 | F5: 2018 | G5: 2019 | H5: 2019 | I5: 2019 | J5: 2019 | K5: 2019 | L5: 2019 | M5: 2019 | N5: 2019
A6: Tableau | B6: ='Représentant 2'!$A$2 -> Représentant 2 | C6: =SUMIF('Représentant 2'!$C:$P,Sommaire!$A$1,'Représentant 2'!E:E)/2 -> 28504.55 | D6: =SUMIF('Représentant 2'!$C:$P,Sommaire!$A$1,'Représentant 2'!F:F)/2 -> 90458.52 | E6: =SUMIF('Représentant 2'!$C:$P,Sommaire!$A$1,'Représentant 2'!G:G)/2 -> 29940.82 | F6: =SUMIF('Représentant 2'!$C:$P,Sommaire!$A$1,'Représentant 2'!H:H)/2 -> 28337.855 | G6: =SUMIF('Représentant 2'!$C:$P,Sommaire!$A$1,'Représentant 2'!I:I)/2 -> 16255.795 | H6: =SUMIF('Représentant 2'!$C:$P,Sommaire!$A$1,'Représentant 2'!J:J)/2 -> 45583 | I6: =SUMIF('Représentant 2'!$C:$P,Sommaire!$A$1,'Représentant 2'!K:K)/2 -> 49919.255 | J6: =SUMIF('Représentant 2'!$C:$P,Sommaire!$A$1,'Représentant 2'!L:L)/2 -> 17879.5 | K6: =SUMIF('Représentant 2'!$C:$P,Sommaire!$A$1,'Représentant 2'!M:M)/2 -> 6828.855 | L6: =SUMIF('Représentant 2'!$C:$P,Sommaire!$A$1,'Représentant 2'!N:N)/2 -> 0 | M6: =SUMIF('Représentant 2'!$C:$P,Sommaire!$A$1,'Représentant 2'!O:O)/2 -> 0 | N6: =SUMIF('Représentant 2'!$C:$P,Sommaire!$A$1,'Représentant 2'!P:P)/2 -> 0 | O6: =SUM(C6:N7) -> 313708.15
B8: ='Représentant 3'!A2 -> Représentant 3 | C8: =SUMIF('Représentant 3'!$C:$P,Sommaire!$A$1,'Représentant 3'!E:E)/2 -> 22050 | D8: =SUMIF('Représentant 3'!$C:$P,Sommaire!$A$1,'Représentant 3'!F:F)/2 -> 4950 | E8: =SUMIF('Représentant 3'!$C:$P,Sommaire!$A$1,'Représentant 3'!G:G)/2 -> 1150 | F8: =SUMIF('Représentant 3'!$C:$P,Sommaire!$A$1,'Représentant 3'!H:H)/2 -> 1145 | G8: =SUMIF('Représentant 3'!$C:$P,Sommaire!$A$1,'Représentant 3'!I:I)/2 -> 0 | H8: =SUMIF('Représentant 3'!$C:$P,Sommaire!$A$1,'Représentant 3'!J:J)/2 -> 0 | I8: =SUMIF('Représentant 3'!$C:$P,Sommaire!$A$1,'Représentant 3'!K:K)/2 -> 0 | J8: =SUMIF('Représentant 3'!$C:$P,Sommaire!$A$1,'Représentant 3'!L:L)/2 -> 22295 | K8: =SUMIF('Représentant 3'!$C:$P,Sommaire!$A$1,'Représentant 3'!M:M)/2 -> 0 | L8: =SUMIF('Représentant 3'!$C:$P,Sommaire!$A$1,'Représentant 3'!N:N)/2 -> 0 | M8: =SUMIF('Représentant 3'!$C:$P,Sommaire!$A$1,'Représentant 3'!O:O)/2 -> 0 | N8: =SUMIF('Représentant 3'!$C:$P,Sommaire!$A$1,'Représentant 3'!P:P)/2 -> 0 | O8: =SUM(C8:N9) -> 51590
B10: ='Représentant 1'!A2 -> Représentant 1 | C10: =SUMIF('Représentant 1'!$C:$P,Sommaire!$A$1,'Représentant 1'!E:E)/2 -> 0 | D10: =SUMIF('Représentant 1'!$C:$P,Sommaire!$A$1,'Représentant 1'!F:F)/2 -> 0 | E10: =SUMIF('Représentant 1'!$C:$P,Sommaire!$A$1,'Représentant 1'!G:G)/2 -> 900 | F10: =SUMIF('Représentant 1'!$C:$P,Sommaire!$A$1,'Représentant 1'!H:H)/2 -> 0 | G10: =SUMIF('Représentant 1'!$C:$P,Sommaire!$A$1,'Représentant 1'!I:I)/2 -> 0 | H10: =SUMIF('Représentant 1'!$C:$P,Sommaire!$A$1,'Représentant 1'!J:J)/2 -> 0 | I10: =SUMIF('Représentant 1'!$C:$P,Sommaire!$A$1,'Représentant 1'!K:K)/2 -> 0 | J10: =SUMIF('Représentant 1'!$C:$P,Sommaire!$A$1,'Représentant 1'!L:L)/2 -> 0 | K10: =SUMIF('Représentant 1'!$C:$P,Sommaire!$A$1,'Représentant 1'!M:M)/2 -> 0 | L10: =SUMIF('Représentant 1'!$C:$P,Sommaire!$A$1,'Représentant 1'!N:N)/2 -> 0 | M10: =SUMIF('Représentant 1'!$C:$P,Sommaire!$A$1,'Représentant 1'!O:O)/2 -> 0 | N10: =SUMIF('Représentant 1'!$C:$P,Sommaire!$A$1,'Représentant 1'!P:P)/2 -> 0 | O10: =SUM(C10:N11) -> 900
B12: Total | C12: =SUM(C6:C11) -> 50554.55 | D12: 95408.52 | E12: 31990.82 | F12: 29482.855 | G12: 16255.795 | H12: 45583 | I12: 49919.255 | J12: 40174.5 | K12: 6828.855 | L12: 0 | M12: 0 | N12: 0 | O12: 366198.15

Sheet Représentant 1
A1: =Sommaire!B1 -> Compagnie
A2: Représentant 1
A3: =Sommaire!B2 -> Prévision des contrats
A4: Client | B4: Nom du média # contrat | E4: =Sommaire!C4 -> Septembre | F4: =Sommaire!D4 -> Octobre | G4: =Sommaire!E4 -> Novembre | H4: =Sommaire!F4 -> Décembre | I4: =Sommaire!G4 -> Janvier | J4: =Sommaire!H4 -> Février | K4: =Sommaire!I4 -> Mars | L4: =Sommaire!J4 -> Avril | M4: =Sommaire!K4 -> Mai | N4: =Sommaire!L4 -> Juin | O4: =Sommaire!M4 -> Juillet | P4: =Sommaire!N4 -> Août | R4: Total
E5: =Sommaire!C5 -> 2018 | F5: =Sommaire!D5 -> 2018 | G5: =Sommaire!E5 -> 2018 | H5: =Sommaire!F5 -> 2018 | I5: =Sommaire!G5 -> 2019 | J5: =Sommaire!H5 -> 2019 | K5: =Sommaire!I5 -> 2019 | L5: =Sommaire!J5 -> 2019 | M5: =Sommaire!K5 -> 2019 | N5: =Sommaire!L5 -> 2019 | O5: =Sommaire!M5 -> 2019 | P5: =Sommaire!N5 -> 2019
C6: =Sommaire!$A$1 -> Contrat
A7: Signature Boisbriand | B7: Rédaction | C7: Contrat | G7: 900 | R7: =SUM(E7:P7) -> 900
C8: Facture | D8: 1 | E8: =IF(E7="","",E7*$D8) ->  | F8: =IF(F7="","",F7*$D8) ->  | G8: 900 | R8: =SUM(E8:Q8) -> 900
C9: Date reçu
C10: Date payée
C11: Commission à payer | E11: =IF(E6="","",IF(E10>0,"",IF(E8>0,E9,""))) ->  | F11: =IF(F6="","",IF(F10>0,"",IF(F8>0,F9,""))) ->  | G11: =IF(G6="","",IF(G10>0,"",IF(G8>0,G9,""))) ->  | H11: =IF(H6="","",IF(H10>0,"",IF(H8>0,H9,""))) ->  | I11: =IF(I6="","",IF(I10>0,"",IF(I8>0,I9,""))) ->  | J11: =IF(J6="","",IF(J10>0,"",IF(J8>0,J9,""))) ->  | K11: =IF(K6="","",IF(K10>0,"",IF(K8>0,K9,""))) ->  | L11: =IF(L6="","",IF(L10>0,"",IF(L8>0,L9,""))) ->  | M11: =IF(M6="","",IF(M10>0,"",IF(M8>0,M9,""))) ->  | N11: =IF(N6="","",IF(N10>0,"",IF(N8>0,N9,""))) ->  | O11: =IF(O6="","",IF(O10>0,"",IF(O8>0,O9,""))) ->  | P11: =IF(P6="","",IF(P10>0,"",IF(P8>0,P9,""))) ->  | R11: =SUM(E11:Q11) -> 0
C12: =Sommaire!$A$1 -> Contrat
C13: Contrat | R13: =SUM(E13:Q13) -> 0
C14: Facture | D14: 0.15 | E14: =IF(E13="","",E13*$D14) ->  | R14: =SUM(E14:Q14) -> 0
C15: Date reçu
C16: Commission | D16: 0.1 | E16: =IF(E13="","",E13*$D16) ->  | R16: =SUM(E16:Q16) -> 0
C17: Date payée
C18: Commission à payer | E18: =IF(E13="","",IF(E17>0,"",IF(E15>0,E16,""))) ->  | F18: =IF(F13="","",IF(F17>0,"",IF(F15>0,F16,""))) ->  | G18: =IF(G13="","",IF(G17>0,"",IF(G15>0,G16,""))) ->  | H18: =IF(H13="","",IF(H17>0,"",IF(H15>0,H16,""))) ->  | I18: =IF(I13="","",IF(I17>0,"",IF(I15>0,I16,""))) ->  | J18: =IF(J13="","",IF(J17>0,"",IF(J15>0,J16,""))) ->  | K18: =IF(K13="","",IF(K17>0,"",IF(K15>0,K16,""))) ->  | L18: =IF(L13="","",IF(L17>0,"",IF(L15>0,L16,""))) ->  | M18: =IF(M13="","",IF(M17>0,"",IF(M15>0,M16,""))) ->  | N18: =IF(N13="","",IF(N17>0,"",IF(N15>0,N16,""))) ->  | O18: =IF(O13="","",IF(O17>0,"",IF(O15>0,O16,""))) ->  | P18: =IF(P13="","",IF(P17>0,"",IF(P15>0,P16,""))) ->  | R18: =SUM(E18:Q18) -> 0
C19: =Sommaire!$A$1 -> Contrat
A20: Total | C20: Contrat | E20: =SUMIF($C$6:$C$19,$C20,E$6:E$19) -> 0 | F20: 0 | G20: 900 | H20: 0 | I20: 0 | J20: 0 | K20: 0 | L20: 0 | M20: 0 | N20: 0 | O20: 0 | P20: 0 | R20: =SUM(E20:Q20) -> 900
C21: Facture | E21: 0 | F21: 0 | G21: 900 | H21: 0 | I21: 0 | J21: 0 | K21: 0 | L21: 0 | M21: 0 | N21: 0 | O21: 0 | P21: 0 | R21: =SUM(E21:Q21) -> 900
C22: Commission | E22: 0 | F22: 0 | G22: 0 | H22: 0 | I22: 0 | J22: 0 | K22: 0 | L22: 0 | M22: 0 | N22: 0 | O22: 0 | P22: 0 | Q22: =SUM(Q6:Q18) -> 0 | R22: =SUM(E22:Q22) -> 0
C23: Commission à payer | E23: 0 | F23: 0 | G23: 0 | H23: 0 | I23: 0 | J23: 0 | K23: 0 | L23: 0 | M23: 0 | N23: 0 | O23: 0 | P23: 0 | Q23: =SUM(Q6:Q19) -> 0 | R23: =SUM(E23:Q23) -> 0

Sheet Représentant 2
A1: =Sommaire!B1 -> Compagnie
A2: Représentant 2
A3: =Sommaire!B2 -> Prévision des contrats
A4: Client | B4: Nom du média # contrat | E4: =Sommaire!C4 -> Septembre | F4: =Sommaire!D4 -> Octobre | G4: =Sommaire!E4 -> Novembre | H4: =Sommaire!F4 -> Décembre | I4: =Sommaire!G4 -> Janvier | J4: =Sommaire!H4 -> Février | K4: =Sommaire!I4 -> Mars | L4: =Sommaire!J4 -> Avril | M4: =Sommaire!K4 -> Mai | N4: =Sommaire!L4 -> Juin | O4: =Sommaire!M4 -> Juillet | P4: =Sommaire!N4 -> Août | Q4: Total
E5: =Sommaire!C5 -> 2018 | F5: =Sommaire!D5 -> 2018 | G5: =Sommaire!E5 -> 2018 | H5: =Sommaire!F5 -> 2018 | I5: =Sommaire!G5 -> 2019 | J5: =Sommaire!H5 -> 2019 | K5: =Sommaire!I5 -> 2019 | L5: =Sommaire!J5 -> 2019 | M5: =Sommaire!K5 -> 2019 | N5: =Sommaire!L5 -> 2019 | O5: =Sommaire!M5 -> 2019 | P5: =Sommaire!N5 -> 2019
C6: =Sommaire!$A$1 -> Contrat
A7: Habitations Trigone | B7: TVA | C7: Contrat | E7: 4711.84 | F7: 26898.22 | G7: 8360.65 | Q7: =SUM(E7:P7) -> 39970.71
C8: Facture | D8: 0.15 | E8: =IF(E7="","",E7*$D8) -> 706.776 | F8: 4034.733 | G8: 1254.0975 | Q8: =SUM(E8:P8) -> 5995.6065
C9: Date reçu
C10: Commission | D10: 0.1 | E10: =IF(E7="","",E7*$D10) -> 471.184 | F10: 2689.822 | G10: 836.065 | Q10: =SUM(E10:P10) -> 3997.071
C11: Date payée
C12: Commission à payer | E12: =IF(E7="","",IF(E11>0,"",IF(E9>0,E10,""))) ->  | F12: =IF(F7="","",IF(F11>0,"",IF(F9>0,F10,""))) ->  | G12: =IF(G7="","",IF(G11>0,"",IF(G9>0,G10,""))) ->  | H12: =IF(H7="","",IF(H11>0,"",IF(H9>0,H10,""))) ->  | I12: =IF(I7="","",IF(I11>0,"",IF(I9>0,I10,""))) ->  | J12: =IF(J7="","",IF(J11>0,"",IF(J9>0,J10,""))) ->  | K12: =IF(K7="","",IF(K11>0,"",IF(K9>0,K10,""))) ->  | L12: =IF(L7="","",IF(L11>0,"",IF(L9>0,L10,""))) ->  | M12: =IF(M7="","",IF(M11>0,"",IF(M9>0,M10,""))) ->  | N12: =IF(N7="","",IF(N11>0,"",IF(N9>0,N10,""))) ->  | O12: =IF(O7="","",IF(O11>0,"",IF(O9>0,O10,""))) ->  | P12: =IF(P7="","",IF(P11>0,"",IF(P9>0,P10,""))) ->  | Q12: =SUM(E12:P12) -> 0
B13: V Média | C13: Contrat | E13: 10952.27 | F13: 31566.8 | G13: 8360.67 | I13: 4489 | J13: 31087 | K13: =7635+31799 -> 39434 | Q13: =SUM(E13:P13) -> 125889.74
C14: Facture | D14: 0.15 | E14: =IF(E13="","",E13*$D14) -> 1642.8405 | F14: 4735.02 | G14: 1254.1005 | I14: 673.35 | J14: 4663.05 | K14: 5915.1 | Q14: =SUM(E14:P14) -> 18883.461
C15: Date reçu
C16: Commission | D16: 0.1 | E16: =IF(E13="","",E13*$D16) -> 1095.227 | F16: 3156.68 | G16: 836.067 | I16: 448.9 | J16: 3108.7 | K16: 3943.4 | Q16: =SUM(E16:P16) -> 12588.974
C17: Date payée
C18: Commission à payer | E18: =IF(E13="","",IF(E17>0,"",IF(E15>0,E16,""))) ->  | F18: =IF(F13="","",IF(F17>0,"",IF(F15>0,F16,""))) ->  | G18: =IF(G13="","",IF(G17>0,"",IF(G15>0,G16,""))) ->  | H18: =IF(H13="","",IF(H17>0,"",IF(H15>0,H16,""))) ->  | I18: =IF(I13="","",IF(I17>0,"",IF(I15>0,I16,""))) ->  | J18: =IF(J13="","",IF(J17>0,"",IF(J15>0,J16,""))) ->  | K18: =IF(K13="","",IF(K17>0,"",IF(K15>0,K16,""))) ->  | L18: =IF(L13="","",IF(L17>0,"",IF(L15>0,L16,""))) ->  | M18: =IF(M13="","",IF(M17>0,"",IF(M15>0,M16,""))) ->  | N18: =IF(N13="","",IF(N17>0,"",IF(N15>0,N16,""))) ->  | O18: =IF(O13="","",IF(O17>0,"",IF(O15>0,O16,""))) ->  | P18: =IF(P13="","",IF(P17>0,"",IF(P15>0,P16,""))) ->  | Q18: =SUM(E18:P18) -> 0
B19: Nikko - tournage | C19: Contrat | H19: 13400 | Q19: =SUM(E19:P19) -> 13400
C20: Facture | D20: 1 | E20: =IF(E19="","",E19*$D20) ->  | H20: 13400 | Q20: =SUM(E20:P20) -> 13400
C21: Date reçu
C22: Commission | D22: 0.1 | E22: =IF(E19="","",E19*$D22) ->  | H22: 1340 | Q22: =SUM(E22:P22) -> 1340
C23: Date payée
C24: Commission à payer | E24: =IF(E19="","",IF(E23>0,"",IF(E21>0,E22,""))) ->  | F24: =IF(F19="","",IF(F23>0,"",IF(F21>0,F22,""))) ->  | G24: =IF(G19="","",IF(G23>0,"",IF(G21>0,G22,""))) ->  | H24: =IF(H19="","",IF(H23>0,"",IF(H21>0,H22,""))) ->  | I24: =IF(I19="","",IF(I23>0,"",IF(I21>0,I22,""))) ->  | J24: =IF(J19="","",IF(J23>0,"",IF(J21>0,J22,""))) ->  | K24: =IF(K19="","",IF(K23>0,"",IF(K21>0,K22,""))) ->  | L24: =IF(L19="","",IF(L23>0,"",IF(L21>0,L22,""))) ->  | M24: =IF(M19="","",IF(M23>0,"",IF(M21>0,M22,""))) ->  | N24: =IF(N19="","",IF(N23>0,"",IF(N21>0,N22,""))) ->  | O24: =IF(O19="","",IF(O23>0,"",IF(O21>0,O22,""))) ->  | P24: =IF(P19="","",IF(P23>0,"",IF(P21>0,P22,""))) ->  | Q24: =SUM(E24:P24) -> 0
C25: =Sommaire!$A$1 -> Contrat
A26: Coiteux Hyundai | B26: Clasique 99,5 (#9467) | C26: Contrat | E26: 2646 | F26: 2646 | G26: 2646 | J26: 2646 | K26: 2646 | L26: 2646 | Q26: =SUM(E26:P26) -> 15876
C27: Facture | D27: 0.15 | E27: =IF(E26="","",E26*$D27) -> 396.9 | F27: 396.9 | G27: 396.9 | J27: 396.9 | K27: 396.9 | L27: 396.9 | Q27: =SUM(E27:P27) -> 2381.4
C28: Date reçu
C29: Commission | D29: 0.1 | E29: =IF(E26="","",E26*$D29) -> 264.6 | F29: 264.6 | G29: 264.6 | J29: 264.6 | K29: 264.6 | L29: 264.6 | Q29: =SUM(E29:P29) -> 1587.6
C30: Date payée
C31: Commission à payer | E31: =IF(E26="","",IF(E30>0,"",IF(E28>0,E29,""))) ->  | F31: =IF(F26="","",IF(F30>0,"",IF(F28>0,F29,""))) ->  | G31: =IF(G26="","",IF(G30>0,"",IF(G28>0,G29,""))) ->  | H31: =IF(H26="","",IF(H30>0,"",IF(H28>0,H29,""))) ->  | I31: =IF(I26="","",IF(I30>0,"",IF(I28>0,I29,""))) ->  | J31: =IF(J26="","",IF(J30>0,"",IF(J28>0,J29,""))) ->  | K31: =IF(K26="","",IF(K30>0,"",IF(K28>0,K29,""))) ->  | L31: =IF(L26="","",IF(L30>0,"",IF(L28>0,L29,""))) ->  | M31: =IF(M26="","",IF(M30>0,"",IF(M28>0,M29,""))) ->  | N31: =IF(N26="","",IF(N30>0,"",IF(N28>0,N29,""))) ->  | O31: =IF(O26="","",IF(O30>0,"",IF(O28>0,O29,""))) ->  | P31: =IF(P26="","",IF(P30>0,"",IF(P28>0,P29,""))) ->  | Q31: =SUM(E31:P31) -> 0
B32: 98,5 FM (#231775) | C32: Contrat | E32: 11400 | F32: 7600 | G32: 7600 | Q32: =SUM(E32:P32) -> 26600
C33: Facture | D33: 0.15 | E33: =IF(E32="","",E32*$D33) -> 1710 | F33: 1140 | G33: 1140 | Q33: =SUM(E33:P33) -> 3990
C34: Date reçu
C35: Commission | D35: 0.1 | E35: =IF(E32="","",E32*$D35) -> 1140 | F35: 760 | G35: 760 | Q35: =SUM(E35:P35) -> 2660
C36: Date payée
C37: Commission à payer | E37: =IF(E32="","",IF(E36>0,"",IF(E34>0,E35,""))) ->  | F37: =IF(F32="","",IF(F36>0,"",IF(F34>0,F35,""))) ->  | G37: =IF(G32="","",IF(G36>0,"",IF(G34>0,G35,""))) ->  | H37: =IF(H32="","",IF(H36>0,"",IF(H34>0,H35,""))) ->  | I37: =IF(I32="","",IF(I36>0,"",IF(I34>0,I35,""))) ->  | J37: =IF(J32="","",IF(J36>0,"",IF(J34>0,J35,""))) ->  | K37: =IF(K32="","",IF(K36>0,"",IF(K34>0,K35,""))) ->  | L37: =IF(L32="","",IF(L36>0,"",IF(L34>0,L35,""))) ->  | M37: =IF(M32="","",IF(M36>0,"",IF(M34>0,M35,""))) ->  | N37: =IF(N32="","",IF(N36>0,"",IF(N34>0,N35,""))) ->  | O37: =IF(O32="","",IF(O36>0,"",IF(O34>0,O35,""))) ->  | P37: =IF(P32="","",IF(P36>0,"",IF(P34>0,P35,""))) ->  | Q37: =SUM(E37:P37) -> 0
C38: =Sommaire!$A$1 -> Contrat
A39: Kosmic | B39: V Télé | C39: Contrat | E39: 8988.88 | F39: 51095 | Q39: =SUM(E39:P39) -> 60083.88
C40: Facture | D40: 0.15 | E40: =IF(E39="","",E39*$D40) -> 1348.332 | F40: 7664.25 | Q40: =SUM(E40:P40) -> 9012.582
C41: Date reçu
C42: Commission | D42: 0.1 | E42: =IF(E39="","",E39*$D42) -> 898.888 | F42: 5109.5 | Q42: =SUM(E42:P42) -> 6008.388
C43: Date payée
C44: Commission à payer | E44: =IF(E39="","",IF(E43>0,"",IF(E41>0,E42,""))) ->  | F44: =IF(F39="","",IF(F43>0,"",IF(F41>0,F42,""))) ->  | G44: =IF(G39="","",IF(G43>0,"",IF(G41>0,G42,""))) ->  | H44: =IF(H39="","",IF(H43>0,"",IF(H41>0,H42,""))) ->  | I44: =IF(I39="","",IF(I43>0,"",IF(I41>0,I42,""))) ->  | J44: =IF(J39="","",IF(J43>0,"",IF(J41>0,J42,""))) ->  | K44: =IF(K39="","",IF(K43>0,"",IF(K41>0,K42,""))) ->  | L44: =IF(L39="","",IF(L43>0,"",IF(L41>0,L42,""))) ->  | M44: =IF(M39="","",IF(M43>0,"",IF(M41>0,M42,""))) ->  | N44: =IF(N39="","",IF(N43>0,"",IF(N41>0,N42,""))) ->  | O44: =IF(O39="","",IF(O43>0,"",IF(O41>0,O42,""))) ->  | P44: =IF(P39="","",IF(P43>0,"",IF(P41>0,P42,""))) ->  | Q44: =SUM(E44:P44) -> 0
C45: =Sommaire!$A$1 -> Contrat
A46: Les Cafés V.P. | B46: WEB | C46: Contrat | J46: 20000 | Q46: =SUM(E46:P46) -> 20000
C47: Facture | D47: 0.15 | E47: =IF(E46="","",E46*$D47) ->  | J47: 3000 | Q47: =SUM(E47:P47) -> 3000
C48: Date reçu
C49: Commission | D49: 0.1 | E49: =IF(E46="","",E46*$D49) ->  | J49: 2000 | Q49: =SUM(E49:P49) -> 2000
C50: Date payée
C51: Commission à payer | E51: =IF(E46="","",IF(E50>0,"",IF(E48>0,E49,""))) ->  | F51: =IF(F46="","",IF(F50>0,"",IF(F48>0,F49,""))) ->  | G51: =IF(G46="","",IF(G50>0,"",IF(G48>0,G49,""))) ->  | H51: =IF(H46="","",IF(H50>0,"",IF(H48>0,H49,""))) ->  | I51: =IF(I46="","",IF(I50>0,"",IF(I48>0,I49,""))) ->  | J51: =IF(J46="","",IF(J50>0,"",IF(J48>0,J49,""))) ->  | K51: =IF(K46="","",IF(K50>0,"",IF(K48>0,K49,""))) ->  | L51: =IF(L46="","",IF(L50>0,"",IF(L48>0,L49,""))) ->  | M51: =IF(M46="","",IF(M50>0,"",IF(M48>0,M49,""))) ->  | N51: =IF(N46="","",IF(N50>0,"",IF(N48>0,N49,""))) ->  | O51: =IF(O46="","",IF(O50>0,"",IF(O48>0,O49,""))) ->  | P51: =IF(P46="","",IF(P50>0,"",IF(P48>0,P49,""))) ->  | Q51: =SUM(E51:P51) -> 0
B52: Pub Interactive SG Inc. | C52: Contrat | H52: 4500 | I52: 4500 | Q52: =SUM(E52:P52) -> 9000
C53: Facture | D53: 0.15 | E53: =IF(E52="","",E52*$D53) ->  | H53: 675 | I53: 675 | Q53: =SUM(E53:P53) -> 1350
C54: Date reçu
C55: Commission | D55: 0.1 | E55: =IF(E52="","",E52*$D55) ->  | H55: 450 | I55: 450 | Q55: =SUM(E55:P55) -> 900
C56: Date payée
C57: Commission à payer | E57: =IF(E52="","",IF(E56>0,"",IF(E54>0,E55,""))) ->  | F57: =IF(F52="","",IF(F56>0,"",IF(F54>0,F55,""))) ->  | G57: =IF(G52="","",IF(G56>0,"",IF(G54>0,G55,""))) ->  | H57: =IF(H52="","",IF(H56>0,"",IF(H54>0,H55,""))) ->  | I57: =IF(I52="","",IF(I56>0,"",IF(I54>0,I55,""))) ->  | J57: =IF(J52="","",IF(J56>0,"",IF(J54>0,J55,""))) ->  | K57: =IF(K52="","",IF(K56>0,"",IF(K54>0,K55,""))) ->  | L57: =IF(L52="","",IF(L56>0,"",IF(L54>0,L55,""))) ->  | M57: =IF(M52="","",IF(M56>0,"",IF(M54>0,M55,""))) ->  | N57: =IF(N52="","",IF(N56>0,"",IF(N54>0,N55,""))) ->  | O57: =IF(O52="","",IF(O56>0,"",IF(O54>0,O55,""))) ->  | P57: =IF(P52="","",IF(P56>0,"",IF(P54>0,P55,""))) ->  | Q57: =SUM(E57:P57) -> 0
C58: =Sommaire!$A$1 -> Contrat
A59: Institut Trebas Québec Inc. | B59: Astral Affiche Voiture (#59719) | C59: Contrat | G59: 13547 | H59: 17683.6 | I59: 13262.7 | K59: 9608.45 | L59: 19216.89 | M59: 9608.45 | Q59: =SUM(E59:P59) -> 82927.09
C60: Facture | D60: 0.15 | E60: =IF(E59="","",E59*$D60) ->  | G60: 2032.05 | H60: 2652.54 | I60: 1989.405 | K60: 1441.2675 | L60: 2882.5335 | M60: 1441.2675 | Q60: =SUM(E60:P60) -> 12439.0635
C61: Date reçu
C62: Commission | D62: 0.1 | E62: =IF(E59="","",E59*$D62) ->  | G62: 1354.7 | H62: 1768.36 | I62: 1326.27 | K62: 960.845 | L62: 1921.689 | M62: 960.845 | Q62: =SUM(E62:P62) -> 8292.709
C63: Date payée
C64: Commission à payer | E64: =IF(E59="","",IF(E63>0,"",IF(E61>0,E62,""))) ->  | F64: =IF(F59="","",IF(F63>0,"",IF(F61>0,F62,""))) ->  | G64: =IF(G59="","",IF(G63>0,"",IF(G61>0,G62,""))) ->  | H64: =IF(H59="","",IF(H63>0,"",IF(H61>0,H62,""))) ->  | I64: =IF(I59="","",IF(I63>0,"",IF(I61>0,I62,""))) ->  | J64: =IF(J59="","",IF(J63>0,"",IF(J61>0,J62,""))) ->  | K64: =IF(K59="","",IF(K63>0,"",IF(K61>0,K62,""))) ->  | L64: =IF(L59="","",IF(L63>0,"",IF(L61>0,L62,""))) ->  | M64: =IF(M59="","",IF(M63>0,"",IF(M61>0,M62,""))) ->  | N64: =IF(N59="","",IF(N63>0,"",IF(N61>0,N62,""))) ->  | O64: =IF(O59="","",IF(O63>0,"",IF(O61>0,O62,""))) ->  | P64: =IF(P59="","",IF(P63>0,"",IF(P61>0,P62,""))) ->  | Q64: =SUM(E64:P64) -> 0
B65: Astral Métrovision/Azur (#59719) | C65: Contrat | H65: 7692.11 | I65: 5192.39 | K65: 2870.06 | L65: =5740.11+1230.8+1179.2 -> 8150.11 | M65: =2870.06+1179.2 -> 4049.26 | Q65: =SUM(E65:P65) -> 27953.93
C66: Facture | D66: 0.15 | E66: =IF(E65="","",E65*$D66) ->  | H66: 1153.8165 | I66: 778.8585 | K66: 430.509 | L66: 1222.5165 | M66: 607.389 | Q66: =SUM(E66:P66) -> 4193.0895
C67: Date reçu
C68: Commission | D68: 0.1 | E68: =IF(E65="","",E65*$D68) ->  | H68: 769.211 | I68: 519.239 | K68: 287.006 | L68: 815.011 | M68: 404.926 | Q68: =SUM(E68:P68) -> 2795.393
C69: Date payée
C70: Commission à payer | E70: =IF(E65="","",IF(E69>0,"",IF(E67>0,E68,""))) ->  | F70: =IF(F65="","",IF(F69>0,"",IF(F67>0,F68,""))) ->  | G70: =IF(G65="","",IF(G69>0,"",IF(G67>0,G68,""))) ->  | H70: =IF(H65="","",IF(H69>0,"",IF(H67>0,H68,""))) ->  | I70: =IF(I65="","",IF(I69>0,"",IF(I67>0,I68,""))) ->  | J70: =IF(J65="","",IF(J69>0,"",IF(J67>0,J68,""))) ->  | K70: =IF(K65="","",IF(K69>0,"",IF(K67>0,K68,""))) ->  | L70: =IF(L65="","",IF(L69>0,"",IF(L67>0,L68,""))) ->  | M70: =IF(M65="","",IF(M69>0,"",IF(M67>0,M68,""))) ->  | N70: =IF(N65="","",IF(N69>0,"",IF(N67>0,N68,""))) ->  | O70: =IF(O65="","",IF(O69>0,"",IF(O67>0,O68,""))) ->  | P70: =IF(P65="","",IF(P69>0,"",IF(P67>0,P68,""))) ->  | Q70: =SUM(E70:P70) -> 0
C71: =Sommaire!$A$1 -> Contrat
A72: Nathalie Brault, Syndic | B72: Campagne internet | C72: Contrat | J72: 3700 | K72: 3200 | L72: 3100 | Q72: =SUM(E72:P72) -> 10000
C73: Facture | D73: 0.15 | E73: =IF(E72="","",E72*$D73) ->  | J73: 555 | K73: 480 | L73: 465 | Q73: =SUM(E73:P73) -> 1500
C74: Date reçu
C75: Commission | D75: 0.1 | E75: =IF(E72="","",E72*$D75) ->  | J75: 370 | K75: 320 | L75: 310 | Q75: =SUM(E75:P75) -> 1000
C76: Date payée
C77: Commission à payer | E77: =IF(E72="","",IF(E76>0,"",IF(E74>0,E75,""))) ->  | F77: =IF(F72="","",IF(F76>0,"",IF(F74>0,F75,""))) ->  | G77: =IF(G72="","",IF(G76>0,"",IF(G74>0,G75,""))) ->  | H77: =IF(H72="","",IF(H76>0,"",IF(H74>0,H75,""))) ->  | I77: =IF(I72="","",IF(I76>0,"",IF(I74>0,I75,""))) ->  | J77: =IF(J72="","",IF(J76>0,"",IF(J74>0,J75,""))) ->  | K77: =IF(K72="","",IF(K76>0,"",IF(K74>0,K75,""))) ->  | L77: =IF(L72="","",IF(L76>0,"",IF(L74>0,L75,""))) ->  | M77: =IF(M72="","",IF(M76>0,"",IF(M74>0,M75,""))) ->  | N77: =IF(N72="","",IF(N76>0,"",IF(N74>0,N75,""))) ->  | O77: =IF(O72="","",IF(O76>0,"",IF(O74>0,O75,""))) ->  | P77: =IF(P72="","",IF(P76>0,"",IF(P74>0,P75,""))) ->  | Q77: =SUM(E77:P77) -> 0
B78: Plaque de cuivre | C78: Contrat | I78: 578.5 | Q78: =SUM(E78:P78) -> 578.5
C79: Facture | D79: 1 | E79: =IF(E78="","",E78*$D79) ->  | I79: 578.5 | Q79: =SUM(E79:P79) -> 578.5
C80: Date reçu
C81: Commission | D81: 0.1 | E81: =IF(E78="","",E78*$D81) ->  | I81: 57.85 | Q81: =SUM(E81:P81) -> 57.85
C82: Date payée
C83: Commission à payer | E83: =IF(E78="","",IF(E82>0,"",IF(E80>0,E81,""))) ->  | F83: =IF(F78="","",IF(F82>0,"",IF(F80>0,F81,""))) ->  | G83: =IF(G78="","",IF(G82>0,"",IF(G80>0,G81,""))) ->  | H83: =IF(H78="","",IF(H82>0,"",IF(H80>0,H81,""))) ->  | I83: =IF(I78="","",IF(I82>0,"",IF(I80>0,I81,""))) ->  | J83: =IF(J78="","",IF(J82>0,"",IF(J80>0,J81,""))) ->  | K83: =IF(K78="","",IF(K82>0,"",IF(K80>0,K81,""))) ->  | L83: =IF(L78="","",IF(L82>0,"",IF(L80>0,L81,""))) ->  | M83: =IF(M78="","",IF(M82>0,"",IF(M80>0,M81,""))) ->  | N83: =IF(N78="","",IF(N82>0,"",IF(N80>0,N81,""))) ->  | O83: =IF(O78="","",IF(O82>0,"",IF(O80>0,O81,""))) ->  | P83: =IF(P78="","",IF(P82>0,"",IF(P80>0,P81,""))) ->  | Q83: =SUM(E83:P83) -> 0
C84: =Sommaire!$A$1 -> Contrat
C85: Contrat | Q85: =SUM(E85:P85) -> 0
C86: Facture | D86: 0.15 | E86: =IF(E85="","",E85*$D86) ->  | Q86: =SUM(E86:P86) -> 0
C87: Date reçu
C88: Commission | D88: 0.1 | E88: =IF(E85="","",E85*$D88) ->  | Q88: =SUM(E88:P88) -> 0
C89: Date payée
C90: Commission à payer | E90: =IF(E85="","",IF(E89>0,"",IF(E87>0,E88,""))) ->  | F90: =IF(F85="","",IF(F89>0,"",IF(F87>0,F88,""))) ->  | Q90: =SUM(E90:P90) -> 0
C91: =Sommaire!$A$1 -> Contrat
A92: Total | C92: Contrat | E92: =SUMIF($C$5:$C$26,$C92,E$5:E$26) -> 18310.11 | F92: 61111.02 | G92: 19367.32 | H92: 13400 | I92: 4489 | J92: 33733 | K92: 42080 | L92: 2646 | M92: 0 | N92: 0 | O92: 0 | P92: 0 | Q92: =SUM(E92:P92) -> 195136.45
C93: Facture | E93: =SUMIF($C$5:$C$91,$C93,E$5:E$91) -> 5804.8485 | F93: =SUMIF($C$5:$C$91,$C93,F$5:F$91) -> 17970.903 | G93: 6077.148 | H93: 17881.3565 | I93: 4695.1135 | J93: 8614.95 | K93: 8663.7765 | L93: 4966.95 | M93: 2048.6565 | N93: 0 | O93: 0 | P93: 0 | Q93: =SUM(E93:P93) -> 76723.7025
C94: Commission | E94: 1566.411 | F94: 5846.502 | G94: 1672.132 | H94: 1340 | I94: 448.9 | J94: 3108.7 | K94: 3943.4 | L94: 0 | M94: 0 | N94: 0 | O94: 0 | P94: 0 | Q94: 17926.045
C95: Commission à payer | E95: 0 | F95: 0 | G95: 0 | H95: 0 | I95: 0 | J95: 0 | K95: 0 | L95: 0 | M95: 0 | N95: 0 | O95: 0 | P95: 0 | Q95: 0

Sheet Représentant 3
A1: =Sommaire!B1 -> Compagnie
A2: Représentant 3
A3: =Sommaire!B2 -> Prévision des contrats
A4: Client | B4: Nom du média # contrat | E4: =Sommaire!C4 -> Septembre | F4: =Sommaire!D4 -> Octobre | G4: =Sommaire!E4 -> Novembre | H4: =Sommaire!F4 -> Décembre | I4: =Sommaire!G4 -> Janvier | J4: =Sommaire!H4 -> Février | K4: =Sommaire!I4 -> Mars | L4: =Sommaire!J4 -> Avril | M4: =Sommaire!K4 -> Mai | N4: =Sommaire!L4 -> Juin | O4: =Sommaire!M4 -> Juillet | P4: =Sommaire!N4 -> Août | R4: Total
E5: =Sommaire!C5 -> 2018 | F5: =Sommaire!D5 -> 2018 | G5: =Sommaire!E5 -> 2018 | H5: =Sommaire!F5 -> 2018 | I5: =Sommaire!G5 -> 2019 | J5: =Sommaire!H5 -> 2019 | K5: =Sommaire!I5 -> 2019 | L5: =Sommaire!J5 -> 2019 | M5: =Sommaire!K5 -> 2019 | N5: =Sommaire!L5 -> 2019 | O5: =Sommaire!M5 -> 2019 | P5: =Sommaire!N5 -> 2019
C6: =Sommaire!$A$1 -> Contrat
A7: Centre Jardin Brossard | B7: Affichage | C7: Contrat | L7: 22295 | R7: =SUM(E7:P7) -> 22295
C8: Facture | D8: 0.15 | E8: =IF(E7="","",E7*$D8) ->  | L8: 3344.25 | R8: =SUM(E8:P8) -> 3344.25
C9: Date reçu
C10: Commission | D10: 0.1 | E10: =IF(E7="","",E7*$D10) ->  | L10: 2229.5 | R10: =SUM(E10:Q10) -> 2229.5
C11: Date payée
C12: Commission à payer | E12: =IF(E7="","",IF(E11>0,"",IF(E9>0,E10,""))) ->  | F12: =IF(F7="","",IF(F11>0,"",IF(F9>0,F10,""))) ->  | G12: =IF(G7="","",IF(G11>0,"",IF(G9>0,G10,""))) ->  | H12: =IF(H7="","",IF(H11>0,"",IF(H9>0,H10,""))) ->  | I12: =IF(I7="","",IF(I11>0,"",IF(I9>0,I10,""))) ->  | J12: =IF(J7="","",IF(J11>0,"",IF(J9>0,J10,""))) ->  | K12: =IF(K7="","",IF(K11>0,"",IF(K9>0,K10,""))) ->  | L12: =IF(L7="","",IF(L11>0,"",IF(L9>0,L10,""))) ->  | M12: =IF(M7="","",IF(M11>0,"",IF(M9>0,M10,""))) ->  | N12: =IF(N7="","",IF(N11>0,"",IF(N9>0,N10,""))) ->  | O12: =IF(O7="","",IF(O11>0,"",IF(O9>0,O10,""))) ->  | P12: =IF(P7="","",IF(P11>0,"",IF(P9>0,P10,""))) ->  | R12: =SUM(E12:Q12) -> 0
C13: =Sommaire!$A$1 -> Contrat
A14: Fenplast | B14: 98,5 FM (#235696) | C14: Contrat | E14: =16000+4100+850+1100 -> 22050 | F14: =4100+850 -> 4950 | R14: =SUM(E14:P14) -> 27000
C15: Facture | D15: 0.15 | E15: =IF(E14="","",E14*$D15) -> 3307.5 | F15: 742.5 | R15: =SUM(E15:P15) -> 4050
C16: Date reçu
C17: Commission | D17: 0.1 | E17: =IF(E14="","",E14*$D17) -> 2205 | F17: 495 | R17: =SUM(E17:Q17) -> 2700
C18: Date payée
C19: Commission à payer | E19: =IF(E14="","",IF(E18>0,"",IF(E16>0,E17,""))) ->  | F19: =IF(F14="","",IF(F18>0,"",IF(F16>0,F17,""))) ->  | G19: =IF(G14="","",IF(G18>0,"",IF(G16>0,G17,""))) ->  | H19: =IF(H14="","",IF(H18>0,"",IF(H16>0,H17,""))) ->  | I19: =IF(I14="","",IF(I18>0,"",IF(I16>0,I17,""))) ->  | J19: =IF(J14="","",IF(J18>0,"",IF(J16>0,J17,""))) ->  | K19: =IF(K14="","",IF(K18>0,"",IF(K16>0,K17,""))) ->  | L19: =IF(L14="","",IF(L18>0,"",IF(L16>0,L17,""))) ->  | M19: =IF(M14="","",IF(M18>0,"",IF(M16>0,M17,""))) ->  | N19: =IF(N14="","",IF(N18>0,"",IF(N16>0,N17,""))) ->  | O19: =IF(O14="","",IF(O18>0,"",IF(O16>0,O17,""))) ->  | P19: =IF(P14="","",IF(P18>0,"",IF(P16>0,P17,""))) ->  | R19: =SUM(E19:Q19) -> 0
B20: Toile | C20: Contrat | H20: 1145 | R20: =SUM(E20:P20) -> 1145
C21: Facture | D21: 0.15 | E21: =IF(E20="","",E20*$D21) ->  | H21: 171.75 | R21: =SUM(E21:P21) -> 171.75
C22: Date reçu
C23: Commission | D23: 0.1 | E23: =IF(E20="","",E20*$D23) ->  | H23: 114.5 | R23: =SUM(E23:Q23) -> 114.5
C24: Date payée
C25: Commission à payer | E25: =IF(E20="","",IF(E24>0,"",IF(E22>0,E23,""))) ->  | F25: =IF(F20="","",IF(F24>0,"",IF(F22>0,F23,""))) ->  | G25: =IF(G20="","",IF(G24>0,"",IF(G22>0,G23,""))) ->  | H25: =IF(H20="","",IF(H24>0,"",IF(H22>0,H23,""))) ->  | I25: =IF(I20="","",IF(I24>0,"",IF(I22>0,I23,""))) ->  | J25: =IF(J20="","",IF(J24>0,"",IF(J22>0,J23,""))) ->  | K25: =IF(K20="","",IF(K24>0,"",IF(K22>0,K23,""))) ->  | L25: =IF(L20="","",IF(L24>0,"",IF(L22>0,L23,""))) ->  | M25: =IF(M20="","",IF(M24>0,"",IF(M22>0,M23,""))) ->  | N25: =IF(N20="","",IF(N24>0,"",IF(N22>0,N23,""))) ->  | O25: =IF(O20="","",IF(O24>0,"",IF(O22>0,O23,""))) ->  | P25: =IF(P20="","",IF(P24>0,"",IF(P22>0,P23,""))) ->  | R25: =SUM(E25:Q25) -> 0
C26: =Sommaire!$A$1 -> Contrat
A27: Spiritueux Ungava | B27: Zaralisée | C27: Contrat | G27: 1150 | R27: =SUM(E27:P27) -> 1150
C28: Facture | D28: 1 | E28: =IF(E27="","",E27*$D28) ->  | G28: 1150 | R28: =SUM(E28:Q28) -> 1150
C29: Date reçu
C30: Commission | D30: 0.1 | E30: =IF(E27="","",E27*$D30) ->  | G30: 115 | R30: =SUM(E30:Q30) -> 115
C31: Date payée
C32: Commission à payer | E32: =IF(E27="","",IF(E31>0,"",IF(E29>0,E30,""))) ->  | F32: =IF(F27="","",IF(F31>0,"",IF(F29>0,F30,""))) ->  | G32: =IF(G27="","",IF(G31>0,"",IF(G29>0,G30,""))) ->  | H32: =IF(H27="","",IF(H31>0,"",IF(H29>0,H30,""))) ->  | I32: =IF(I27="","",IF(I31>0,"",IF(I29>0,I30,""))) ->  | J32: =IF(J27="","",IF(J31>0,"",IF(J29>0,J30,""))) ->  | K32: =IF(K27="","",IF(K31>0,"",IF(K29>0,K30,""))) ->  | L32: =IF(L27="","",IF(L31>0,"",IF(L29>0,L30,""))) ->  | M32: =IF(M27="","",IF(M31>0,"",IF(M29>0,M30,""))) ->  | N32: =IF(N27="","",IF(N31>0,"",IF(N29>0,N30,""))) ->  | O32: =IF(O27="","",IF(O31>0,"",IF(O29>0,O30,""))) ->  | P32: =IF(P27="","",IF(P31>0,"",IF(P29>0,P30,""))) ->  | R32: =SUM(E32:Q32) -> 0
C33: =Sommaire!$A$1 -> Contrat
C34: Contrat | R34: =SUM(E34:Q34) -> 0
C35: Facture | D35: 0.15 | E35: =IF(E34="","",E34*$D35) ->  | R35: =SUM(E35:Q35) -> 0
C36: Date reçu
C37: Commission | D37: 0.1 | E37: =IF(E34="","",E34*$D37) ->  | R37: =SUM(E37:Q37) -> 0
C38: Date payée
C39: Commission à payer | E39: =IF(E34="","",IF(E38>0,"",IF(E36>0,E37,""))) ->  | F39: =IF(F34="","",IF(F38>0,"",IF(F36>0,F37,""))) ->  | R39: =SUM(E39:Q39) -> 0
C40: =Sommaire!$A$1 -> Contrat
A41: Total | C41: Contrat | E41: =SUMIF($C$7:$C$27,$C41,E$7:E$27) -> 22050 | F41: =SUMIF($C$7:$C$27,$C41,F$7:F$27) -> 4950 | G41: =SUMIF($C$7:$C$27,$C41,G$7:G$27) -> 1150 | H41: =SUMIF($C$7:$C$27,$C41,H$7:H$27) -> 1145 | I41: =SUMIF($C$7:$C$27,$C41,I$7:I$27) -> 0 | J41: =SUMIF($C$7:$C$27,$C41,J$7:J$27) -> 0 | K41: =SUMIF($C$7:$C$27,$C41,K$7:K$27) -> 0 | L41: =SUMIF($C$7:$C$27,$C41,L$7:L$27) -> 22295 | M41: =SUMIF($C$7:$C$27,$C41,M$7:M$27) -> 0 | N41: =SUMIF($C$7:$C$27,$C41,N$7:N$27) -> 0 | O41: =SUMIF($C$7:$C$27,$C41,O$7:O$27) -> 0 | P41: =SUMIF($C$7:$C$27,$C41,P$7:P$27) -> 0 | R41: =SUM(E41:Q41) -> 51590
C42: Facture | E42: =SUMIF($C$7:$C$27,$C42,E$7:E$27) -> 3307.5 | F42: =SUMIF($C$7:$C$27,$C42,F$7:F$27) -> 742.5 | G42: =SUMIF($C$7:$C$27,$C42,G$7:G$27) -> 0 | H42: =SUMIF($C$7:$C$27,$C42,H$7:H$27) -> 171.75 | I42: =SUMIF($C$7:$C$27,$C42,I$7:I$27) -> 0 | J42: =SUMIF($C$7:$C$27,$C42,J$7:J$27) -> 0 | K42: =SUMIF($C$7:$C$27,$C42,K$7:K$27) -> 0 | L42: =SUMIF($C$7:$C$27,$C42,L$7:L$27) -> 3344.25 | M42: =SUMIF($C$7:$C$27,$C42,M$7:M$27) -> 0 | N42: =SUMIF($C$7:$C$27,$C42,N$7:N$27) -> 0 | O42: =SUMIF($C$7:$C$27,$C42,O$7:O$27) -> 0 | P42: =SUMIF($C$7:$C$27,$C42,P$7:P$27) -> 0 | R42: =SUM(E42:Q42) -> 7566
C43: Commission | E43: =SUMIF($C$7:$C$27,$C43,E$7:E$27) -> 2205 | F43: =SUMIF($C$7:$C$27,$C43,F$7:F$27) -> 495 | G43: =SUMIF($C$7:$C$27,$C43,G$7:G$27) -> 0 | H43: =SUMIF($C$7:$C$27,$C43,H$7:H$27) -> 114.5 | I43: =SUMIF($C$7:$C$27,$C43,I$7:I$27) -> 0 | J43: =SUMIF($C$7:$C$27,$C43,J$7:J$27) -> 0 | K43: =SUMIF($C$7:$C$27,$C43,K$7:K$27) -> 0 | L43: =SUMIF($C$7:$C$27,$C43,L$7:L$27) -> 2229.5 | M43: =SUMIF($C$7:$C$27,$C43,M$7:M$27) -> 0 | N43: =SUMIF($C$7:$C$27,$C43,N$7:N$27) -> 0 | O43: =SUMIF($C$7:$C$27,$C43,O$7:O$27) -> 0 | P43: =SUMIF($C$7:$C$27,$C43,P$7:P$27) -> 0 | Q43: =SUM(Q14:Q32) -> 0 | R43: =SUM(E43:Q43) -> 5044
C44: Commission à payer | E44: =SUMIF($C$7:$C$27,$C44,E$7:E$27) -> 0 | F44: =SUMIF($C$7:$C$27,$C44,F$7:F$27) -> 0 | G44: =SUMIF($C$7:$C$27,$C44,G$7:G$27) -> 0 | H44: =SUMIF($C$7:$C$27,$C44,H$7:H$27) -> 0 | I44: =SUMIF($C$7:$C$27,$C44,I$7:I$27) -> 0 | J44: =SUMIF($C$7:$C$27,$C44,J$7:J$27) -> 0 | K44: =SUMIF($C$7:$C$27,$C44,K$7:K$27) -> 0 | L44: =SUMIF($C$7:$C$27,$C44,L$7:L$27) -> 0 | M44: =SUMIF($C$7:$C$27,$C44,M$7:M$27) -> 0 | N44: =SUMIF($C$7:$C$27,$C44,N$7:N$27) -> 0 | O44: =SUMIF($C$7:$C$27,$C44,O$7:O$27) -> 0 | P44: =SUMIF($C$7:$C$27,$C44,P$7:P$27) -> 0 | Q44: =SUM(Q14:Q33) -> 0 | R44: =SUM(E44:Q44) -> 0

Sheet Original
A1: =Sommaire!B1 -> Compagnie
A2: Représentant:
A3: =Sommaire!B2 -> Prévision des contrats
A4: Client | B4: Nom du média # contrat | E4: =Sommaire!C4 -> Septembre | F4: =Sommaire!D4 -> Octobre | G4: =Sommaire!E4 -> Novembre | H4: =Sommaire!F4 -> Décembre | I4: =Sommaire!G4 -> Janvier | J4: =Sommaire!H4 -> Février | K4: =Sommaire!I4 -> Mars | L4: =Sommaire!J4 -> Avril | M4: =Sommaire!K4 -> Mai | N4: =Sommaire!L4 -> Juin | O4: =Sommaire!M4 -> Juillet | P4: =Sommaire!N4 -> Août | R4: Total
E5: =Sommaire!C5 -> 2018 | F5: =Sommaire!D5 -> 2018 | G5: =Sommaire!E5 -> 2018 | H5: =Sommaire!F5 -> 2018 | I5: =Sommaire!G5 -> 2019 | J5: =Sommaire!H5 -> 2019 | K5: =Sommaire!I5 -> 2019 | L5: =Sommaire!J5 -> 2019 | M5: =Sommaire!K5 -> 2019 | N5: =Sommaire!L5 -> 2019 | O5: =Sommaire!M5 -> 2019 | P5: =Sommaire!N5 -> 2019
C6: =$A$3 -> Prévision des contrats
C7: Contrat | R7: =SUM(E7:Q7) -> 0
C8: Facture | D8: 0.15 | E8: =IF(E7="","",E7*$D8) ->  | R8: =SUM(E8:Q8) -> 0
C9: Date reçu
C10: Commission | D10: 0.1 | E10: =IF(E7="","",E7*$D10) ->  | R10: =SUM(E10:Q10) -> 0
C11: Date payée
C12: Commission à payer | E12: =IF(E7="","",IF(E11>0,"",IF(E9>0,E10,""))) ->  | F12: =IF(F7="","",IF(F11>0,"",IF(F9>0,F10,""))) ->  | R12: =SUM(E12:Q12) -> 0
C13: =$A$3 -> Prévision des contrats
A14: Total | C14: Contrat | E14: =SUMIF($C$6:$C$13,$C14,E$6:E$13) -> 0 | F14: =SUMIF($C$6:$C$13,$C14,F$6:F$13) -> 0 | G14: =SUMIF($C$6:$C$13,$C14,G$6:G$13) -> 0 | H14: =SUMIF($C$6:$C$13,$C14,H$6:H$13) -> 0 | I14: =SUMIF($C$6:$C$13,$C14,I$6:I$13) -> 0 | J14: =SUMIF($C$6:$C$13,$C14,J$6:J$13) -> 0 | K14: =SUMIF($C$6:$C$13,$C14,K$6:K$13) -> 0 | L14: =SUMIF($C$6:$C$13,$C14,L$6:L$13) -> 0 | M14: =SUMIF($C$6:$C$13,$C14,M$6:M$13) -> 0 | N14: =SUMIF($C$6:$C$13,$C14,N$6:N$13) -> 0 | O14: =SUMIF($C$6:$C$13,$C14,O$6:O$13) -> 0 | P14: =SUMIF($C$6:$C$13,$C14,P$6:P$13) -> 0 | R14: =SUM(E14:Q14) -> 0
C15: Facture | E15: =SUMIF($C$6:$C$13,$C15,E$6:E$13) -> 0 | F15: =SUMIF($C$6:$C$13,$C15,F$6:F$13) -> 0 | G15: =SUMIF($C$6:$C$13,$C15,G$6:G$13) -> 0 | H15: =SUMIF($C$6:$C$13,$C15,H$6:H$13) -> 0 | I15: =SUMIF($C$6:$C$13,$C15,I$6:I$13) -> 0 | J15: =SUMIF($C$6:$C$13,$C15,J$6:J$13) -> 0 | K15: =SUMIF($C$6:$C$13,$C15,K$6:K$13) -> 0 | L15: =SUMIF($C$6:$C$13,$C15,L$6:L$13) -> 0 | M15: =SUMIF($C$6:$C$13,$C15,M$6:M$13) -> 0 | N15: =SUMIF($C$6:$C$13,$C15,N$6:N$13) -> 0 | O15: =SUMIF($C$6:$C$13,$C15,O$6:O$13) -> 0 | P15: =SUMIF($C$6:$C$13,$C15,P$6:P$13) -> 0 | R15: =SUM(E15:Q15) -> 0
C16: Commission | E16: =SUMIF($C$6:$C$13,$C16,E$6:E$13) -> 0 | F16: =SUMIF($C$6:$C$13,$C16,F$6:F$13) -> 0 | G16: =SUMIF($C$6:$C$13,$C16,G$6:G$13) -> 0 | H16: =SUMIF($C$6:$C$13,$C16,H$6:H$13) -> 0 | I16: =SUMIF($C$6:$C$13,$C16,I$6:I$13) -> 0 | J16: =SUMIF($C$6:$C$13,$C16,J$6:J$13) -> 0 | K16: =SUMIF($C$6:$C$13,$C16,K$6:K$13) -> 0 | L16: =SUMIF($C$6:$C$13,$C16,L$6:L$13) -> 0 | M16: =SUMIF($C$6:$C$13,$C16,M$6:M$13) -> 0 | N16: =SUMIF($C$6:$C$13,$C16,N$6:N$13) -> 0 | O16: =SUMIF($C$6:$C$13,$C16,O$6:O$13) -> 0 | P16: =SUMIF($C$6:$C$13,$C16,P$6:P$13) -> 0 | Q16: =SUM(Q6:Q12) -> 0 | R16: =SUM(E16:Q16) -> 0
C17: Commission à payer | E17: =SUMIF($C$6:$C$13,$C17,E$6:E$13) -> 0 | F17: =SUMIF($C$6:$C$13,$C17,F$6:F$13) -> 0 | G17: =SUMIF($C$6:$C$13,$C17,G$6:G$13) -> 0 | H17: =SUMIF($C$6:$C$13,$C17,H$6:H$13) -> 0 | I17: =SUMIF($C$6:$C$13,$C17,I$6:I$13) -> 0 | J17: =SUMIF($C$6:$C$13,$C17,J$6:J$13) -> 0 | K17: =SUMIF($C$6:$C$13,$C17,K$6:K$13) -> 0 | L17: =SUMIF($C$6:$C$13,$C17,L$6:L$13) -> 0 | M17: =SUMIF($C$6:$C$13,$C17,M$6:M$13) -> 0 | N17: =SUMIF($C$6:$C$13,$C17,N$6:N$13) -> 0 | O17: =SUMIF($C$6:$C$13,$C17,O$6:O$13) -> 0 | P17: =SUMIF($C$6:$C$13,$C17,P$6:P$13) -> 0 | Q17: =SUM(Q6:Q13) -> 0 | R17: =SUM(E17:Q17) -> 0
